Cogmind - Beta 9.6 @@@ ROGUE MODE // 2020.09.03 @ 09:38:23 Player: Finestep Result: Core destroyed Performance ------------- Evolutions (1) 500 Regions Visited (5) 1000 Robots Destroyed (123) 615 Value Destroyed (2198) 2198 Prototype IDs (28) 560 Alien Tech Used (0) 0 Bonus (-145) -145 TOTAL SCORE: 4728 Bonus ------- High Alert Combat Kills 66 Aligned with FarCom 300 Friendly Fire -511 Cogmind --------- Core Integrity 0/400 Matter 256/300 Energy 100/280 System Corruption 0% Temperature Cool (515) Movement Treading (220) Ox3 Location -9/Exiles Parts ------- > --- POWER (1) -------- Heavy Ion Engine > --- PROPULSION (3) --- Light Treads Light Treads > --- UTILITY (3) ------ High-capacity Storage Unit Heavy Armor Plating > --- WEAPON (2) ------- Heavy Assault Rifle Autogun > --- INVENTORY (12) --- Cooled Ion Engine EM Shotgun EM Shotgun Light Assault Rifle Heavy Assault Rifle Mini Grenade Launcher Peak State ------------ > --- POWER ------------ Ion Engine > --- PROPULSION ------- Light Treads Light Treads Light Treads > --- UTILITY ---------- Large Storage Unit Large Storage Unit High-capacity Storage Unit > --- WEAPON ----------- Advanced Beam Cannon Bore Cannon > --- INVENTORY -------- Light Treads Improved Heat Sink Disposable Heat Sink Large Storage Unit Light Armor Plating Light Armor Plating Light Armor Plating Light Armor Plating Light Armor Plating Hardened Light Armor Plating EM Shotgun EM Shotgun EM Shotgun EM Shotgun EM Shotgun Light EM Pulse Cannon Light EM Pulse Cannon Light EM Pulse Cannon Light EM Pulse Cannon Light Assault Rifle Heavy Assault Rifle Autogun Katana [Rating: 19] Favorites ----------- Power Light Ion Engine Engine Light Ion Engine Propulsion Light Treads Treads Light Treads Utility Large Storage Unit Storage Large Storage Unit Protection Heavy Armor Plating Weapon Heavy Assault Rifle Energy Gun EM Shotgun Energy Cannon Advanced Beam Cannon Ballistic Gun Heavy Assault Rifle Ballistic Cannon Bore Cannon Launcher Grenade Launcher Slashing Weapon Katana Build | -11 -10 -10 -9 -9 -9 ------- Run | Scr Mat Min Mat Min Exi Slots Evolved 2 | . . . 2 . . Power . | . . . . . . Propulsion 1 | . . . 1 . . Utility 1 | . . . 1 . . Weapon . | . . . . . . Parts Attached 77 | 6 13 10 35 1 12 Power 10 | 1 2 . 7 . . Engine 10 | 1 2 . 7 . . Core . | . . . . . . Reactor . | . . . . . . Propulsion 14 | 2 . 4 6 . 2 Treads 14 | 2 . 4 6 . 2 Leg . | . . . . . . Wheel . | . . . . . . Hover . | . . . . . . Flight . | . . . . . . Utility 8 | 1 2 . 3 . 2 Device . | . . . . . . Storage 6 | 1 2 . 3 . . Processor . | . . . . . . Hackware . | . . . . . . Protection 2 | . . . . . 2 Artifact . | . . . . . . Weapon 45 | 2 9 6 19 1 8 Energy Gun 6 | . . . 1 . 5 Energy Cannon 2 | . . . 2 . . Ballistic Gun 25 | 2 5 4 11 1 2 Ballistic Cannon 3 | . . . 3 . . Launcher 7 | . 4 2 . . 1 Special Weapon . | . . . . . . Impact Weapon . | . . . . . . Slashing Weapon 2 | . . . 2 . . Piercing Weapon . | . . . . . . Special Melee Weapon . | . . . . . . Unidentified Prototypes 3 | . . . 3 . . Parts Lost 21 | . 1 6 8 . 6 Power 2 | . 1 . 1 . . Propulsion 10 | . . 3 4 . 3 Utility 1 | . . . . . 1 Weapon 8 | . . 3 3 . 2 Highest Loss Streak 6 | . 1 4 2 . 6 Average Slot Usage (%) 94 | . 99 98 91 100 94 Engine 11 | . 13 14 10 11 11 Treads 28 | . 28 27 25 33 32 Storage 29 | . 27 28 32 33 23 Ballistic Gun 20 | . 27 27 16 21 19 Ballistic Cannon 1 | . . . 3 . . Naked Turns . | . . . . . . Heaviest Build 82 | 10 56 54 82 78 78 Greatest Support 60 | 40 40 40 60 60 60 Greatest Overweight (x) 3 | 1 1 1 3 1 1 Average Overweight (x) 1 | . . 1 1 1 1 Largest Inventory Capacity 24 | 6 18 18 24 24 24 Average Capacity 20 | 5 17 18 23 24 18 Most Carried 24 | 3 18 18 24 24 24 Average Carried 17 | 1 13 16 20 24 17 Final Capacity 24 | 6 18 18 24 24 12 Final Carried 24 | 3 18 14 24 24 6 Class Distribution -------------------- 41% | Hauler-Mutant 34% | Mutant 24% | Scavenger-Mutant Dominant Class ---------------- Mutant | -10/Materials Mutant | -10/Mines Hauler-Mutant | -9/Materials Hauler-Mutant | -9/Mines Hauler-Mutant | -9/Exiles Resources | -11 -10 -10 -9 -9 -9 ----------- Run | Scr Mat Min Mat Min Exi Matter Collected 2388 | 320 410 200 1318 20 120 Remotely . | . . . . . . Salvage Created 3460 | 123 860 343 2113 . 21 Parts 228 | 7 66 13 142 . . Haulers Intercepted 8 | . 2 . 6 . . Recyclers Shooed 8 | . 2 1 5 . . Parts Field Recycled . | . . . . . . Retrieved Matter . | . . . . . . Parts Self-Destructed . | . . . . . . Prevented . | . . . . . . Kills | -11 -10 -10 -9 -9 -9 ------- Run | Scr Mat Min Mat Min Exi Combat Hostiles Destroyed 83 | . 26 14 39 . 4 Guns 51 | . 15 9 27 . . Cannons 12 | . . . 12 . . AOE 20 | . 11 5 . . 4 Classes Destroyed 10 | 2 6 1 1 . . Worker 7 | . 2 1 4 . . Builder 4 | . 1 . 3 . . Tunneler 4 | 2 1 . 1 . . Hauler 8 | . 2 . 6 . . Recycler 7 | 1 . 1 5 . . Watcher 7 | . 3 . 4 . . Swarmer 26 | . 9 2 15 . . Grunt 37 | . 17 4 16 . . Sentry 8 | . . . 8 . . Assembled 15 | . . 8 . . 7 Best Kill Streak 9 | 2 6 8 9 . 4 Combat Bots Only 8 | . 6 8 8 . 4 Max Kills in Single Turn 3 | 1 3 3 1 . 3 Gunslinging 1 | . 1 . . . . Exploded 3 | . 3 3 . . 2 Melee . | . . . . . . Uniques/NPCs Destroyed 1 | . . . . . 1 EX-BIN (-9/Exiles) EX-HEX (-9/Exiles) Combat | -11 -10 -10 -9 -9 -9 -------- Run | Scr Mat Min Mat Min Exi Damage Taken 4209 | . 534 727 1881 . 1067 Core 646 | . 151 71 226 . 198 Absorbed by Shields . | . . . . . . Core Remaining (%) 55 | 100 . 11 . . . Volleys Fired 319 | 15 57 35 185 . 27 Largest 2 | 2 2 2 2 . 2 Hottest 125 | 40 40 40 125 . 90 Shots Fired 611 | 30 104 67 360 . 50 Gun 506 | 30 94 64 271 . 47 Cannon 89 | . . . 89 . . Launcher 16 | . 10 3 . . 3 Special . | . . . . . . Kinetic 526 | 30 94 64 334 . 4 Thermal 26 | . . . 26 . . Explosive 16 | . 10 3 . . 3 Electromagnetic 43 | . . . . . 43 Robot Hit Streak 32 | 5 11 14 32 . 18 Robot Miss Streak 6 | 2 3 3 6 . 3 Penetration Max 1 | . . . 1 . . Secondary Targets 3 | . 1 . 2 . . Max Gunslinging Chain 1 | . 1 . 1 . . Shots Hit Robots 412 | 18 69 45 237 . 43 Core Hits 193 | 8 53 30 90 . 12 Critical Hits 19 | . . . 19 . . Critical Kills 12 | . . . 12 . . Critical Parts Destroyed 6 | . . . 6 . . Melee Attacks 2 | . . . 2 . . Impact . | . . . . . . Slashing 2 | . . . 2 . . Piercing . | . . . . . . Sneak Attacks . | . . . . . . Combat Hostiles . | . . . . . . Follow-up Attacks . | . . . . . . Damage Inflicted 6478 | 151 1576 792 3549 . 410 Guns 3638 | 151 697 398 2364 . 28 Cannons 1003 | . . . 1003 . . Explosions 1826 | . 877 394 173 . 382 Melee . | . . . . . . Ramming 11 | . 2 . 9 . . Kinetic 4362 | 151 697 398 3088 . 28 Thermal 452 | . . . 452 . . Explosive 1653 | . 877 394 . . 382 Electromagnetic . | . . . . . . Impact . | . . . . . . Slashing . | . . . . . . Piercing . | . . . . . . Highest Corruption 4 | . . 4 . . . Average Corruption 4 | . . 4 . . . Corruption Purged . | . . . . . . Effects 2 | . . 2 . . . Matter Fused 1 | . . 1 . . . Parts Rejected 1 | . . 1 . . . Overload Shots . | . . . . . . Overflow Damage 176 | . 7 . 169 . . Projectiles 21 | . . . 21 . . Explosions 155 | . 7 . 148 . . Melee . | . . . . . . Knockbacks 5 | . . . 5 . . Impact . | . . . . . . Kinetic 5 | . . . 5 . . Secondary . | . . . . . . Self-Inflicted Damage 81 | . . 24 57 . . Shots 2 | . . 1 1 . . Rammed 2 | . 1 . 1 . . Targets Rammed 2 | . 1 . 1 . . Kicked . | . . . . . . Crushed . | . . . . . . Highest Temperature 566 | . 18 18 324 . 566 Average Temperature 122 | . 6 9 78 . 343 Received Heat Transfer 747 | . 189 153 405 . . Effects 24 | . . . 1 . 23 Shutdowns 3 | . . . . . 3 Energy Bleed 3 | . . . . . 3 Interference 2 | . . . 1 . 1 Short Circuit 2 | . . . . . 2 Damage (minor) 4 | . . . . . 4 Damage (major) 7 | . . . . . 7 Damage (core) 3 | . . . . . 3 Siege Activations . | . . . . . . Robots Corrupted . | . . . . . . Combat Hostiles . | . . . . . . Parts Fried . | . . . . . . Impact Corruptions . | . . . . . . Robots Melted . | . . . . . . Combat Hostiles . | . . . . . . Parts Melted . | . . . . . . Heat Transferred 581 | . . . 581 . . Parts Sabotaged . | . . . . . . Parts Stolen . | . . . . . . Parts Stripped . | . . . . . . Power Chain Reactions . | . . . . . . Missiles Intercepted . | . . . . . . Alert | -11 -10 -10 -9 -9 -9 ------- Run | Scr Mat Min Mat Min Exi Peak Influence 578 | 15 326 218 578 204 . Average Influence 204 | 5 116 180 263 204 . Maximum Alert Level 2 | . 1 1 2 1 . Low Security (%) 54 | 100 77 80 43 . . Level 1 31 | . 22 19 31 100 . Level 2 13 | . . . 25 . . Level 3 . | . . . . . . Level 4 . | . . . . . . Level 5 . | . . . . . . High Security . | . . . . . . Max Security . | . . . . . . Squads Dispatched 11 | . 5 . 6 . . Investigation 8 | . 5 . 3 . . Extermination . | . . . . . . Reinforcement 3 | . . . 3 . . Assault . | . . . . . . Garrison . | . . . . . . Intercept . | . . . . . . Construction Impeded . | . . . . . . Haulers Reinforced . | . . . . . . Stealth | -11 -10 -10 -9 -9 -9 --------- Run | Scr Mat Min Mat Min Exi Distress Signals 4 | . . . 4 . . Communications Jammed . | . . . . . . Distress Signals . | . . . . . . Times Spotted 115 | . 28 21 61 . 5 Peak Tracking Total 13 | . 4 13 6 . 6 Tactical Retreats 5 | . . 2 3 . . Traps | -11 -10 -10 -9 -9 -9 ------- Run | Scr Mat Min Mat Min Exi Traps Triggered 6 | . 3 . 3 . . Indirectly . | . . . . . . Trap Hack Attempts . | . . . . . . Triggered . | . . . . . . Disarmed . | . . . . . . Reprogrammed . | . . . . . . Reused . | . . . . . . Traps Extracted . | . . . . . . Installed . | . . . . . . Triggered . | . . . . . . Machines | -11 -10 -10 -9 -9 -9 ---------- Run | Scr Mat Min Mat Min Exi Machines Disabled 7 | . 1 . 2 . 4 Max in Single Turn 1 | . 1 . 1 . 1 Machines Sabotaged . | . . . . . . Garrisons Compromised . | . . . . . . Overloaded Fab Kills . | . . . . . . Fab Network Shutdowns . | . . . . . . Hacking | -11 -10 -10 -9 -9 -9 --------- Run | Scr Mat Min Mat Min Exi Machines Accessed 20 | . 8 1 9 . 2 Terminals 14 | . 6 1 7 . . Fabricators . | . . . . . . Repair Stations 1 | . . . 1 . . Recycling Units 3 | . 2 . 1 . . Scanalyzers . | . . . . . . Garrison Access . | . . . . . . Total Hacks 63 | . 22 2 34 . 5 Successful 34 | . 11 . 18 . 5 Failed 28 | . 10 2 16 . . Catastrophic 1 | . . . 1 . . Database Lockouts 1 | . 1 . . . . Manual 36 | . 15 2 18 . 1 Terminals 45 | . 19 2 24 . . Fabricators . | . . . . . . Repair Stations 3 | . . . 3 . . Recycling Units 10 | . 3 . 7 . . Scanalyzers . | . . . . . . Garrison Access . | . . . . . . Terminal Hacks 23 | . 7 . 11 . 5 Record 4 | . . . . . 4 Part Schematic 1 | . . . 1 . . Robot Schematic 1 | . . . 1 . . Robot Analysis 4 | . 2 . 2 . . Prototype ID Bank 2 | . 1 . 1 . . Unreport Threat 4 | . 2 . 2 . . Recall Investigation 1 | . 1 . . . . Hauler Manifests 1 | . . . 1 . . Zone Layout 4 | . 1 . 3 . . EX-Prototype ID Bank 1 | . . . . . 1 Fabricator Hacks . | . . . . . . Repair Station Hacks 2 | . . . 2 . . Scan Component 1 | . . . 1 . . Repair 1 | . . . 1 . . Recycling Unit Hacks 2 | . . . 2 . . Retrieve Components 2 | . . . 2 . . Scanalyzer . | . . . . . . Garrison Access Hacks . | . . . . . . Unauthorized Hacks 7 | . 4 . 3 . . Terminals 3 | . 2 . 1 . . Track 2 | . 1 . 1 . . Botnet 1 | . 1 . . . . Fabricators . | . . . . . . Repair Stations . | . . . . . . Recycling Units 4 | . 2 . 2 . . Reject 1 | . . . 1 . . Mask 1 | . . . 1 . . Tunnel 2 | . 2 . . . . Scanalyzers . | . . . . . . Garrison Access . | . . . . . . Data Cores Recovered . | . . . . . . Used . | . . . . . . Hacking Detections 16 | . 6 1 9 . . Full Trace Events 1 | . . . 1 . . Feedback Events . | . . . . . . Feedback Blocked . | . . . . . . Robot Schematics Acquired 1 | . . . 1 . . Robots Built . | . . . . . . Matter . | . . . . . . Time . | . . . . . . Total Robot Build Rating . | . . . . . . Part Schematics Acquired 1 | . . . 1 . . Parts Built . | . . . . . . Matter . | . . . . . . Time . | . . . . . . Total Part Build Rating . | . . . . . . Parts Repaired 1 | . . . 1 . . Time 26 | . . . 26 . . Parts Recycled . | . . . . . . Recycled Matter . | . . . . . . Retrieved Matter . | . . . . . . Retrieved Components 20 | . . . 20 . . Parts Scanalyzed . | . . . . . . Part Schematics Acquired . | . . . . . . Parts Damaged . | . . . . . . Bothacking | -11 -10 -10 -9 -9 -9 ------------ Run | Scr Mat Min Mat Min Exi Used RIF Installer . | . . . . . . Robots Hacked . | . . . . . . Non-combat . | . . . . . . Combat . | . . . . . . Robot Hacks Applied . | . . . . . . Relay Couplers Released . | . . . . . . Robots Rewired . | . . . . . . Allies Hacked . | . . . . . . Hacks Repelled . | . . . . . . Allies | -11 -10 -10 -9 -9 -9 -------- Run | Scr Mat Min Mat Min Exi Total Allies . | . . . . . . Largest Group . | . . . . . . Highest-Rated Group . | . . . . . . Highest-Rated Ally . | . . . . . . Total Orders . | . . . . . . Ally Attacks 14 | . . . . . 14 Total Damage 602 | . . . . . 602 Kills 4 | . . . . . 4 Allies Corrupted . | . . . . . . Allies Melted . | . . . . . . Turrets Deployed 2 | . . . . . 2 Intel | -11 -10 -10 -9 -9 -9 ------- Run | Scr Mat Min Mat Min Exi Robot Analysis Total 4 | . 2 . 2 . . Derelict Logs Recovered 2 | . . 1 . 1 . Drone Launches . | . . . . . . Drone Recoveries . | . . . . . . Exploration | -11 -10 -10 -9 -9 -9 ------------- Run | Scr Mat Min Mat Min Exi Turns Passed 6224 | 117 1442 396 2732 297 1240 Spaces Moved 2765 | 47 690 153 1093 165 617 Core 12 | 12 . . . . . Treads 2753 | 35 690 153 1093 165 617 Legs . | . . . . . . Wheels . | . . . . . . Hover . | . . . . . . Flight . | . . . . . . Fastest Speed 50 | 50 160 180 180 180 180 Average Speed 182 | 137 179 180 188 180 180 Slowest Speed 220 | 160 180 180 220 180 180 Overloaded Moves . | . . . . . . Propulsion Burnouts . | . . . . . . Robots Hopped 1 | . . . . . 1 Cave-ins Triggered . | . . . . . . Exploration Rate (%) 55 | 6 90 46 84 34 70 Regions Visited 5 Branch Regions 3 Pre-discovered Areas 4 | . 2 1 . . 1 Known Exits Taken . | . . . . . . Unknown Exits Taken 5 | 1 1 1 1 1 . Scrap Searched 2 | . . 1 . 1 . Spaces Dug 9 | . . 7 2 . . Terrain Destroyed 128 | . 47 22 51 . 8 Melee 2 | . . . 2 . . Projectile 33 | . . . 33 . . AOE 93 | . 47 22 16 . 8 Actions | -11 -10 -10 -9 -9 -9 --------- Run | Scr Mat Min Mat Min Exi Total 3386 | 70 794 214 1434 165 709 Wait 92 | . 13 15 52 . 12 Move 2758 | 46 689 152 1092 164 615 Hop 1 | . . . . . 1 Pick Up 71 | 3 17 2 34 . 15 Fast Attach 16 | 6 2 1 7 . . Attach 22 | . 1 6 9 . 6 Detach 1 | . . . 1 . . Swap 39 | . 10 3 19 1 6 Drop 63 | . 4 . 32 . 27 Fire 319 | 15 57 35 185 . 27 Melee 2 | . . . 2 . . Ram . | . . . . . . Kick . | . . . . . . Crush 2 | . 1 . 1 . . Escape Stasis . | . . . . . . Rewire . | . . . . . . Trap . | . . . . . . Miscellaneous . | . . . . . . Route ------- -11/Scrapyard -10/Materials (discovered 5 exits: *Mat x3 / *Min x2) -10/Mines -9/Materials (discovered 3 exits: [*Mat x2] / [*Min]) -9/Mines -9/Exiles (discovered 2 exits: [*Min x2]) History --------- Turn | Location | Event 16 | -11/Scrapyard | Discovered new exit (range 13) 118 | -11/Scrapyard | Entered Materials 318 | -10/Materials | Build established: Mutant 420 | -10/Materials | Discovered new exit (range 17) 689 | -10/Materials | Discovered new exit (range 16) 826 | -10/Materials | Discovered new exit (range 16) 1090 | -10/Materials | Discovered new exit (range 16) 1216 | -10/Materials | Central database locked down 1328 | -10/Materials | Core integrity fell below 50% 1341 | -10/Materials | Discovered new exit (range 15) 1560 | -10/Materials | Entered Mines 1791 | -10/Mines | Assembled infested the area 1796 | -10/Mines | Assisted by a Guerilla fighting off Assembled 1823 | -10/Mines | Core integrity fell below 20% 1863 | -10/Mines | Lost 4 parts (1n3w) 1880 | -10/Mines | Destroyed 8 combat bots 1932 | -10/Mines | Discovered new exit (range 13) 1956 | -10/Mines | Entered Materials 1956 | -9/Materials | Evolved 2 slots: Propulsion x1, Utility x1 2307 | -9/Materials | Build established: Hauler-Mutant 2450 | -9/Materials | Discovered new exit (range 3) 3380 | -9/Materials | Discovered new exit (range 12) 3503 | -9/Materials | Build established: Scavenger-Mutant 3944 | -9/Materials | Core integrity fell below 50% 3974 | -9/Materials | Destroyed 8 combat bots 4330 | -9/Materials | Discovered new exit (range 9) 4672 | -9/Materials | Repaired Lgt. Treads 4688 | -9/Materials | Entered Mines 4764 | -9/Mines | Build established: Hauler-Mutant 4962 | -9/Mines | Learned location of 1 exit from Proximity Caves 4978 | -9/Mines | Deemed a non-threat by the Exiles lab entrance 4978 | -9/Mines | Discovered new exit (range 5) 4985 | -9/Mines | Entered Exiles 5063 | -9/Exiles | Met 8R-AWN 5088 | -9/Exiles | Met EX-HEX 5138 | -9/Exiles | Met EX-BIN 5160 | -9/Exiles | Aligned with FarCom system 5162 | -9/Exiles | Given EX-Vault access code 5205 | -9/Exiles | Opened EX-Vault 5218 | -9/Exiles | Found Deploy-a-Sentry 5221 | -9/Exiles | Found Deploy-a-Sentry 5258 | -9/Exiles | Warned to stay clear of 0b10 Research branches 5307 | -9/Exiles | Met EX-DEC 5316 | -9/Exiles | DAS Turret deployed 5323 | -9/Exiles | DAS Turret deployed 5537 | -9/Exiles | Discovered new exit (range 15) 5791 | -9/Exiles | Learned location of Zion (-6) 5927 | -9/Exiles | Discovered new exit (range 10) 5988 | -9/Exiles | Build established: Scavenger-Mutant 6131 | -9/Exiles | Attacked by the Exiles 6150 | -9/Exiles | Allies destroyed EX-BIN 6169 | -9/Exiles | Allies destroyed EX-HEX 6216 | -9/Exiles | Core integrity fell below 20% 6226 | -9/Exiles | Core destroyed Last Messages --------------- 06214_ HV Slug penetrates Wall. 06214_ HV Slug penetrates Machine. 06216_ Overheating: Core damaged (-64). 06217_ EM Shotgun permanently disabled. 06217_ Overheating: Short circuit. 06218_ Lgt. Treads permanently disabled. 06218_ Overheating: Short circuit. 06219_ Penetrated by HV Slug. 06219_ Critical hit. 06219_ Penetrated by HV Slug. 06219_ Critical hit. 06220_ Overheating: System interference. 06220_ EM Shotgun temporarily disabled. 06222_ Power failure, Hvy. Ion Engine shutdown. 06223_ Overheating: Lgt. Treads damaged (-32). 06223_ Penetrated by HV Slug. 06224_ Overheating: Hvy. Assault Rifle damaged (-27). 06224_ Overheating: Broken Lgt. Treads damaged (-26). 06224_ Overheating: Autogun damaged (-32). 06226_ Overheating: Core damaged (-44). Map ----- +----------------------------------------------------+ | """#??????????????????????????????????? | | """#??????????????????????????????????? | | """#??????????????????????????????????? | | """#??????????????????????????????????? | | """#??????????????????????????????????? | | """"??????????????????????????????????? | | """#??????????????????????????????????? | | "X" """"??????????????????????????????????? | | """ #??????????????????????????????????? | | """""""""#??????????????????????????????????? | | ###########??????????????????????????????????? | | #????????????????????????????????????????????? | | #????????????????????????????????????????????? | | ##???????????????????????????????????????????? | | ##???####;######????????????????????????????? | | #####"""" """"##???????????????????????????? | | " """ """"##??????????????????????????? | | "" " #??????????????????????????? | | """#??????????????????????????? | | !! a"#???????????#####??????????? | | ] " ##?????????##" #??????????? | | ] ] ] ###???????#" #??????????? | | "" [ ! "#??????##" ##?????????? | | #""" #????### ###???????? | | #####""" ####?# ######### | | ????##""" @;;### #""""## | | ?????#"""" ;## | | ????##"" !! g ## | | ?####"""" #### | | ##""" ""#?#"""""#### | | """ #"""##?#######??#### | | ######??????????????## | | ##????????????????????? | | " ##?????????????????????? | | "" """ "#??????????????????????? | | ##""" " " ""#" "##??????????????????????? | | ######""" """## ##???????????????????????? | | #????###""""#### # #????????????????????????? | | #??????######???### ##?????????????????????????? | | "!#???????????????#???????????????????????????? | | !#???????????????????????????????????????????? | | "#???????????????????????????????????????????? | | !""!"#???????????????????????????????????????????? | | ######???????????????????????????????????????????? | | ?????????????????????????????????????????????????? | | ?????????????????????????????????????????????????? | | ?????????????????????????????????????????????????? | | ?????????????????????????????????????????????????? | | ?????????????????????????????????????????????????? | | ?????????????????????????????????????????????????? | +----------------------------------------------------+ Best States ------------- Heat Dissipation 28 Energy Generation 14 Energy Capacity 280 Matter Stores 300 Matter Capacity 300 Sight Range 16 Terrain Scan Density 10 Armor Coverage 600 Evasion (%) 40 Recoil Reduction 3 Item Schematics ----------------- Hcp. Storage Unit | -9/Materials | Hacked Robot Schematics ------------------ O-16 Technician | -9/Materials | Hacked Fabricated ------------ Nothing Alien Tech Used ----------------- None Achievements -------------- None Challenges ------------ None Game ------ Seed ComponentDataBoomstick Manual? 0 Play Time 00:32:35 Cumulative 444.7 hours Start 2020.09.03 @ 09:06:33 End 2020.09.03 @ 09:38:23 Sessions 1 Manual Loads 0 Difficulty Rogue Special Mode None Game No. 301 Rogue 301 Adventurer 0 Explorer 0 Win Type - Total 4 Types 4/0/0/0/0/0/0 Lore% 86 Gallery% 87 Achievement% 66 Wizard Run 0 Options --------- ASCII 0 Keyboard 0 Movement Mouse Keybinds 1 Fullscreen 2 Font 24/Smallcaps Map View 76x50 Tactical HUD 1 Map Filters NONE Filters NONE Steam 1 RUN: 438fe95c-3d52-4e34-adef-693113b4b4e3